fUSD/lending_fUSD_20241125
["ID","MTS","AMOUNT","RATE_DAILY","PERIOD"]
[343258807,1732535024543,-784.05,0.0002696,2]
[343258808,1732535024616,-1456.0,0.00028,30]
[343258809,1732535024695,-4732.17570613,0.00028,7]
[343258810,1732535024768,-250.0,0.00028635,2]
[343258811,1732535024842,-250.0,0.00028667,2]
[343258812,1732535024916,-1667.13,0.00028762,2]
[343258813,1732535024983,-500.0,0.0002878,2]
[343258814,1732535025057,-2751.0,0.00028797,2]
[343258815,1732535025127,-250.0,0.00028867,2]
[343258816,1732535025201,-200.0,0.00028878,2]
[343258817,1732535025280,-151.81,0.00029126,30]
[343258818,1732535025346,-10256.88497157,0.00029191,2]
[343258819,1732535065849,-784.05,0.00029224,2]
[343258820,1732535065926,-2721.25,0.00029412,2]
[343258821,1732535066000,-176.48,0.0002946,2]
[343258822,1732535066073,-23900.0,0.00029464,2]
[343258823,1732535066142,-6351.21442884,0.00029537,2]
[343258824,1732535066211,-194.89,0.00029574,2]
[343258825,1732535066284,-166.36,0.00029578,2]
[343258826,1732535066356,-2002.98,0.00029605,2]
[343258827,1732535066430,-2000.0,0.00029637,2]
[343258828,1732535066503,-300.0,0.00029778,2]
[343258829,1732535066578,-2406.49991702,0.000298,2]
[343258830,1732535066662,-237.11577,0.0002982,2]
[343258831,1732535066755,-1000.0,0.00029899,2]
[343258832,1732535066874,-772.0,0.000299,2]
[343258833,1732535066966,-237.11577,0.0002994,2]
[343258834,1732535067061,-1040.81745759,0.0003,120]
[343258835,1732535067175,-5709.22665655,0.0003,14]
[343258836,1732535071732,397.0,0.00012,2]
[343258837,1732535174661,-443.87936,0.0002994,2]
[343258838,1732535174693,-150.0,0.00029973,2]
[343258839,1732535174719,-232.26341931,0.00029999,2]
[343258840,1732535174742,-1972.1815478,0.0003,14]
[343258841,1732535174767,-5692.72068484,0.0003,15]
[343258842,1732535174792,-2000.0,0.0003,14]
[343258843,1732535174816,-2510.02002103,0.0003,30]
[343258844,1732535174840,-304.0,0.0003,7]
[343258845,1732535174865,-653.21861927,0.0003,2]
[343258846,1732535174892,-151.0,0.0003,120]
[343258847,1732535174916,-151.0,0.0003,120]
[343258848,1732535174951,-1000.0,0.00030092,2]
[343258849,1732535174976,-273.81,0.00030239,120]
[343258850,1732535174998,-300.0,0.00030258,2]
[343258851,1732535175022,-152.08,0.00030685,2]
[343258852,1732535175047,-152.1,0.00030685,2]
[343258853,1732535175069,-324.09,0.00030811,2]
[343258854,1732535175092,-2933.62,0.00030902,2]
[343258855,1732535175115,-250.0,0.00031,2]
[343258856,1732535175136,-1055.0,0.0003107,5]
[343258857,1732535175159,-784.05,0.00031488,2]
[343258858,1732535175186,-300.0,0.00031628,2]
[343258859,1732535175208,-169.39,0.00031658,2]
[343258860,1732535175231,-6351.2144288,0.00031759,2]
[343258861,1732535175252,-6694.36191895,0.00032,5]
[343258907,1732535355265,150.0,0.00020463,5]
[343258927,1732535432084,-150.0,0.00027384,2]
[343258928,1732535432094,-4218.97769483,0.00029269,2]
[343258929,1732535432105,-4902.1995,0.00029269,2]
[343258930,1732535436632,-377.9563499,0.00029269,2]
[343258994,1732535438189,-2519.84998623,0.00029269,2]
[343258995,1732535438200,-11506.60552015,0.00029269,2]
[343258996,1732535438359,-4117.1750302,0.0002974,2]
[343258997,1732535438371,-4117.17503018,0.0002982,2]
[343258998,1732535438381,-789.2817,0.0002984,3]
[343258999,1732535438390,-4117.17503018,0.000299,2]
[343259000,1732535438400,-151.0,0.0003,120]
[343259001,1732535438408,-157.68,0.00030685,2]
[343259002,1732535438417,-250.0,0.00031,2]
[343259003,1732535438426,-158.07718,0.00031759,2]
[343259004,1732535438435,-34181.10475526,0.00032,5]
[343259005,1732535438446,-13198.99904024,0.00032,5]
[343259006,1732535438460,-3540.9571532,0.00032,5]
[343259011,1732535438651,-596.72731247,0.00032,5]
[343259012,1732535438661,-2734.1192058,0.00032,30]
[343259013,1732535438670,-166.36,0.00032018,2]
[343259014,1732535438680,-150.0,0.000323,120]
[343259015,1732535438689,-2697.14397182,0.000325,2]
[343259016,1732535438699,-2191.08,0.000325,2]
[343259017,1732535438709,-247.21,0.0003251,10]
[343259018,1732535438718,-206.01,0.0003251,10]
[343259019,1732535438728,-8098.99250179,0.0003252,2]
[343259020,1732535438746,-837.0,0.0003252,2]
[343259021,1732535439480,-17852.05963292,0.0003252,2]
[343259022,1732535439490,-1991.55,0.00032522,2]
[343259023,1732535439500,-150.99,0.00032522,2]
[343259024,1732535439510,-151.81,0.00032811,120]
[343259025,1732535439520,-150.0,0.00032831,2]
[343259026,1732535439530,-151.0,0.00032849,120]
[343259027,1732535439539,-173.9585,0.00032948,2]
[343259028,1732535439549,-300.0,0.00033,2]
[343259029,1732535439559,-1000.0,0.00033318,2]
[343259031,1732535439568,-169.39,0.00033338,2]
[343259032,1732535439577,-194.89,0.00033397,2]
[343259033,1732535439587,-784.05,0.00033752,2]
[343259034,1732535439597,-180.16225,0.00033822,2]
[343259035,1732535439607,-500.0,0.00034,30]
[343259036,1732535439617,-505.89940583,0.00034,30]
[343259037,1732535439627,-500.0,0.00034,30]
[343259039,1732535439638,-500.0,0.00034,30]
[343259041,1732535439648,-500.0,0.00034,30]
[343259043,1732535439660,-500.0,0.00034,30]
[343259044,1732535439670,-500.0,0.00034,30]
[343259045,1732535439680,-500.0,0.00034,30]
[343259046,1732535439689,-500.0,0.00034,30]
[343259047,1732535439700,-500.0,0.00034,30]
[343259048,1732535439709,-500.0,0.00034,30]
[343259049,1732535439719,-500.0,0.00034,30]
[343259050,1732535439730,-500.0,0.00034,30]
[343259051,1732535439740,-500.0,0.00034,30]
[343259052,1732535439751,-500.0,0.00034,30]
[343259053,1732535439761,-500.0,0.00034,30]
[343259054,1732535439774,-500.0,0.00034,30]
[343259056,1732535439784,-500.0,0.00034,30]
[343259057,1732535439793,-500.0,0.00034,30]
[343259059,1732535439803,-500.0,0.00034,30]
[343259060,1732535439814,-500.0,0.00034,30]
[343259061,1732535439824,-500.0,0.00034,30]
[343259062,1732535439833,-594.23076493,0.00034,30]
[343259063,1732535439844,-738.6645318,0.00034,30]
[343259064,1732535439858,-500.0,0.00034,30]
[343259065,1732535439868,-712.22188775,0.00034,30]
[343259066,1732535439877,-722.29553309,0.00034,30]
[343259067,1732535439887,-500.0,0.00034,30]
[343259068,1732535439896,-500.0,0.00034,30]
[343259069,1732535439911,-500.0,0.00034,30]
[343259070,1732535439920,-937.87254628,0.00034,30]
[343259071,1732535439930,-500.0,0.00034,2]
[343259072,1732535439940,-250.43444613,0.00034,5]
[343259073,1732535439949,-273.81,0.00034019,120]
[343259074,1732535439959,-195.88075,0.00034163,2]
[343259075,1732535439968,-264.435,0.00034163,2]
[343259076,1732535439978,-166.36,0.00034459,2]
[343259077,1732535439987,-336.39289048,0.00034548,2]
[343259078,1732535439997,-150.0,0.00034548,10]
[343259079,1732535440006,-500.0,0.00035,30]
[343259080,1732535440015,-500.0,0.00035,30]
[343259081,1732535440024,-371.08599302,0.00035,30]
[343259082,1732535440033,-837.99849544,0.00035,30]
[343259083,1732535440042,-500.0,0.00035,30]
[343259084,1732535440051,-500.0,0.00035,30]
[343259085,1732535440060,-500.0,0.00035,30]
[343259086,1732535440069,-500.0,0.00035,30]
[343259087,1732535440079,-500.0,0.00035,30]
[343259088,1732535440088,-500.0,0.00035,30]
[343259089,1732535440097,-500.0,0.00035,30]
[343259090,1732535440106,-500.0,0.00035,30]
[343259091,1732535440115,-500.0,0.00035,30]
[343259092,1732535440125,-500.0,0.00035,30]
[343259093,1732535440133,-500.0,0.00035,30]
[343259094,1732535440143,-500.0,0.00035,30]
[343259096,1732535440155,-500.0,0.00035,30]
[343259098,1732535440164,-500.0,0.00035,30]
[343259099,1732535440173,-500.0,0.00035,30]
[343259101,1732535440182,-500.0,0.00035,30]
[343259102,1732535440191,-500.0,0.00035,30]
[343259103,1732535440200,-500.0,0.00035,30]
[343259104,1732535440209,-500.0,0.00035,30]
[343259105,1732535440219,-15.29270955,0.00035,30]
[343259106,1732535440231,-484.70729045,0.00035,30]
[343259107,1732535440240,-500.0,0.00035,30]
[343259108,1732535440249,-500.0,0.00035,30]
[343259109,1732535440259,-500.0,0.00035,30]
[343259110,1732535440268,-208.08992546,0.00035,30]
[343259111,1732535440278,-500.0,0.00035,30]
[343259112,1732535440287,-472.80628538,0.00035,30]
[343259113,1732535440296,-500.0,0.00035,30]
[343259114,1732535440305,-500.0,0.00035,30]
[343259115,1732535440314,-500.0,0.00035,30]
[343259116,1732535440324,-500.0,0.00035,30]
[343259117,1732535440333,-500.0,0.00035,30]
[343259118,1732535440342,-500.0,0.00035,30]
[343259119,1732535440471,-500.0,0.00035,30]
[343259120,1732535440480,-500.0,0.00035,30]
[343259121,1732535440490,-322.38243517,0.00035,30]
[343259122,1732535440499,-503.32501788,0.00035,30]
[343259123,1732535440508,-500.0,0.00035,30]
[343259124,1732535440517,-665.37727883,0.00035,30]
[343259125,1732535440526,-500.0,0.00035,30]
[343259126,1732535440536,-500.0,0.00035,30]
[343259127,1732535440545,-500.0,0.00035,30]
[343259128,1732535440554,-500.0,0.00035,30]
[343259129,1732535440563,-1545.44273135,0.00035,30]
[343259130,1732535440573,-9871.20839134,0.00035,10]
[343259131,1732535440620,-522.01863323,0.00031996,2]
[343259132,1732535440643,-379.16929023,0.00031996,2]
[343259133,1732535441005,-2245.05979804,0.00031996,2]
[343259134,1732535441014,-11659.98110768,0.00035,10]
[343259135,1732535441052,-69.29570096,0.00035,10]
[343259136,1732535441063,-518.56,0.00035,10]
[343259137,1732535441089,-5525.39450243,0.00035,10]
[343259138,1732535441098,-3900.0,0.00035,7]
[343259139,1732535441108,-1065.05563193,0.00035,32]
[343259140,1732535441117,-2248.49578372,0.00035,90]
[343259162,1732535442922,-171.68,0.0003251,10]
[343259163,1732535442932,-1620.45935468,0.00035,90]
[343259164,1732535442944,-24839.0692739,0.00035,90]
[343259165,1732535442955,-411.7032948,0.00035,90]
[343259166,1732535442967,-1907.63045659,0.00035,90]
[343259167,1732535442976,-700.0,0.00035,120]
[343259168,1732535442986,-170.53583351,0.00035,2]
[343259169,1732535442995,-350.0,0.00035,2]
[343259170,1732535443005,-169.39,0.00035017,2]
[343259171,1732535443014,-338.27047854,0.000351,7]
[343259172,1732535443024,-1440.97826035,0.000352,5]
[343259173,1732535443035,-567.24344535,0.000352,5]
[343259174,1732535443044,-151.0,0.0003538,2]
[343259175,1732535443053,-151.0,0.00035452,120]
[343259176,1732535443064,-404.5,0.00035616,120]
[343259177,1732535443073,-151.0,0.00035699,120]
[343259178,1732535443082,-860.27754784,0.00036,90]
[343259179,1732535443093,-8778.11194774,0.00036,90]
[343259180,1732535443102,-784.05,0.00036015,2]
[343259181,1732535443111,-151.81,0.00036318,120]
[343259182,1732535443120,-169.39,0.00036697,2]
[343259183,1732535443129,-158.07718,0.00036759,2]
[343259184,1732535443138,-152.08,0.00036938,2]
[343259185,1732535443148,-234.0,0.00036999,5]
[343259186,1732535443158,-247.3567,0.00036999,2]
[343259187,1732535443168,-400.0,0.00037,2]
[343259188,1732535443176,-952.8383079,0.00037482,2]
[343259189,1732535443195,-47.1616921,0.00037482,2]
[343259190,1732535443205,-204.13830771,0.00037593,2]
[343259191,1732535443215,-3008.36454389,0.00037593,2]
[343259211,1732535446046,-35171.4971484,0.00037593,2]
[343259212,1732535446056,-163.11416,0.000376,120]
[343259213,1732535446066,-273.81,0.00037799,120]
[343259214,1732535446075,-400.0,0.000379,13]
[343259215,1732535446086,-317.62997941,0.00038256,2]
[343259216,1732535446095,-190.65596406,0.00038256,2]
[343259217,1732535446105,-164.7695055,0.00038256,11]
[343259218,1732535446114,-152.1,0.00038278,2]
[343259219,1732535446123,-784.05,0.00038279,2]
[343259220,1732535446133,-4176.53886428,0.00038354,10]
[343259221,1732535446142,-168.017314,0.00038356,21]
[343259222,1732535446151,-224.156426,0.00038356,21]
[343259223,1732535446163,-154.589909,0.00038356,21]
[343259224,1732535446173,-500.0,0.00038356,21]
[343259225,1732535446182,-500.0,0.00038356,21]
[343259226,1732535446191,-500.0,0.00038356,21]
[343259227,1732535446201,-500.0,0.00038356,21]
[343259228,1732535446210,-500.0,0.00038356,21]
[343259229,1732535446220,-500.0,0.00038356,21]
[343259230,1732535446229,-500.0,0.00038356,21]
[343259231,1732535446238,-500.0,0.00038356,21]
[343259232,1732535446248,-500.0,0.00038356,21]
[343259234,1732535446263,-500.0,0.00038356,21]
[343259235,1732535446287,-500.0,0.00038356,21]
[343259236,1732535446297,-500.0,0.00038356,21]
[343259237,1732535446307,-500.0,0.00038356,21]
[343259238,1732535446316,-500.0,0.00038356,21]
[343259239,1732535446325,-116.49378282,0.00038356,21]
[343259240,1732535446661,-345.5,0.00038356,21]
[343259241,1732535446673,-38.00621718,0.00038356,21]
[343259242,1732535446683,-500.0,0.00038356,21]
[343259243,1732535446692,-157.00399615,0.00038356,21]
[343259244,1732535446726,-342.99600385,0.00038356,21]
[343259245,1732535446736,-25.4747194,0.00038356,21]
[343259246,1732535590792,-150.0,0.0003,2]
[343259247,1732535594555,-150.0,0.00032861,2]
[343259248,1732535597180,150.0,0.00032761,2]
[343259249,1732535597202,150.0,0.00032761,2]
[343259250,1732535597224,77.3007348,0.00032761,2]
[343259252,1732535709191,-170.663,0.00034163,2]
[343259253,1732535709215,-731.14,0.00035633,2]
[343259254,1732535709237,-150.0,0.00036,2]
[343259255,1732535709258,-200.0,0.00037227,30]
[343259256,1732535709282,-23900.0,0.00037228,2]
[343259257,1732535709304,-250.0,0.00037239,120]
[343259258,1732535709326,-250.0,0.00037296,2]
[343259259,1732535709348,-1212.79335663,0.00037362,2]
[343259260,1732535709379,-1212.79335663,0.00037417,2]
[343259261,1732535709402,-15636.42,0.00037434,2]
[343259262,1732535709425,-500.0,0.00037463,2]
[343259263,1732535709448,-250.0,0.00037517,2]
[343259264,1732535709470,-200.0,0.00037551,2]
[343259265,1732535709492,-3336.22,0.00037552,2]
[343259266,1732535709512,-171.92,0.00037787,2]
[343259267,1732535709535,-731.14,0.00037897,2]
[343259268,1732535709557,-3087.0,0.00037972,2]
[343259269,1732535709579,-1293.81874046,0.00038256,2]
[343259270,1732535709603,-5127.2657047,0.00038256,2]
[343259271,1732535709624,-317.6299794,0.00038256,2]
[343259272,1732535709647,-6562.15880868,0.00038256,2]
[343259273,1732535709670,-473.33398,0.00038279,2]
[343259274,1732535709693,-275.53,0.00038346,10]
[343259275,1732535709715,-18508.73566847,0.00038354,14]
[343259276,1732535709736,-500.0,0.00038356,21]
[343259277,1732535709756,-500.0,0.00038356,21]
[343259278,1732535709777,-500.0,0.00038356,21]
[343259279,1732535709798,-500.0,0.00038356,21]
[343259280,1732535709819,-500.0,0.00038356,21]
[343259281,1732535709841,-500.0,0.00038356,21]
[343259282,1732535709868,-506.73723453,0.00038356,21]
[343259283,1732535709893,-500.0,0.00038356,21]
[343259284,1732535709915,-500.0,0.00038356,21]
[343259285,1732535709940,-502.99,0.00038356,21]
[343259286,1732535709962,-500.0,0.00038356,21]
[343259287,1732535709985,-500.0,0.00038356,21]
[343259288,1732535710007,-512.40648491,0.00038356,21]
[343259289,1732535710030,-500.0,0.00038356,21]
[343259290,1732535710053,-500.0,0.00038356,21]
[343259291,1732535710076,-500.0,0.00038356,21]
[343259292,1732535710100,-500.0,0.00038356,21]
[343259293,1732535710124,-500.0,0.00038356,21]
[343259294,1732535710147,-500.0,0.00038356,21]
[343259295,1732535710168,-500.0,0.00038356,21]
[343259296,1732535710190,-500.0,0.00038356,21]
[343259297,1732535710212,-500.0,0.00038356,21]
[343259298,1732535710235,-818.24,0.00038356,21]
[343259299,1732535710256,-500.0,0.00038356,21]
[343259300,1732535710279,-500.0,0.00038356,21]
[343259301,1732535710301,-500.0,0.00038356,21]
[343259302,1732535710322,-500.0,0.00038356,21]
[343259303,1732535710345,-500.0,0.00038356,21]
[343259304,1732535710368,-500.0,0.00038356,21]
[343259305,1732535710389,-500.0,0.00038356,21]
[343259306,1732535710410,-500.0,0.00038356,21]
[343259307,1732535710432,-500.0,0.00038356,21]
[343259308,1732535710453,-500.0,0.00038356,21]
[343259309,1732535710474,-500.0,0.00038356,21]
[343259310,1732535710495,-500.0,0.00038356,21]
[343259311,1732535710516,-500.0,0.00038356,21]
[343259312,1732535710538,-500.0,0.00038356,21]
[343259313,1732535710560,-500.0,0.00038356,21]
[343259314,1732535710582,-500.0,0.00038356,21]
[343259315,1732535710606,-500.0,0.00038356,21]
[343259316,1732535710626,-500.0,0.00038356,21]
[343259317,1732535710647,-434.5304723,0.00038356,21]
[343259318,1732535710668,-500.0,0.00038356,21]
[343259319,1732535710689,-500.0,0.00038356,21]
[343259320,1732535710711,-500.0,0.00038356,21]
[343259321,1732535710733,-884.68,0.00038356,21]
[343259322,1732535710754,-500.0,0.00038356,21]
[343259323,1732535710776,-500.0,0.00038356,21]
[343259324,1732535710909,-500.0,0.00038356,21]
[343259325,1732535710957,-500.0,0.00038356,21]
[343259326,1732535710979,-500.0,0.00038356,21]
[343259327,1732535711002,-500.0,0.00038356,21]
[343259328,1732535711024,-224.58062656,0.00038356,21]
[343259329,1732535711045,-500.0,0.00038356,21]
[343259330,1732535711066,-500.0,0.00038356,21]
[343259331,1732535711087,-500.0,0.00038356,21]
[343259332,1732535711114,-613.3,0.00038356,21]
[343259333,1732535711135,-500.0,0.00038356,21]
[343259334,1732535711161,-500.0,0.00038356,21]
[343259335,1732535711182,-500.0,0.00038356,21]
[343259336,1732535711206,-500.0,0.00038356,21]
[343259337,1732535711231,-500.0,0.00038356,21]
[343259338,1732535711253,-500.0,0.00038356,21]
[343259339,1732535711275,-500.0,0.00038356,21]
[343259340,1732535711297,-500.0,0.00038356,21]
[343259341,1732535711320,-500.0,0.00038356,21]
[343259342,1732535711341,-500.0,0.00038356,21]
[343259343,1732535711368,-505.58420742,0.00038356,21]
[343259344,1732535711396,-500.0,0.00038356,21]
[343259345,1732535711418,-500.0,0.00038356,21]
[343259346,1732535711440,-500.0,0.00038356,21]
[343259347,1732535711464,-500.0,0.00038356,21]
[343259348,1732535711488,-500.0,0.00038356,21]
[343259349,1732535711510,-500.0,0.00038356,21]
[343259350,1732535711534,-500.0,0.00038356,21]
[343259351,1732535711557,-500.0,0.00038356,21]
[343259352,1732535711580,-500.0,0.00038356,21]
[343259353,1732535711606,-500.0,0.00038356,21]
[343259354,1732535711628,-500.0,0.00038356,21]
[343259355,1732535711650,-500.0,0.00038356,21]
[343259356,1732535711672,-500.0,0.00038356,21]
[343259357,1732535711694,-500.0,0.00038356,21]
[343259358,1732535711717,-500.0,0.00038356,21]
[343259359,1732535711741,-500.0,0.00038356,21]
[343259360,1732535711767,-500.0,0.00038356,21]
[343259361,1732535711820,-500.0,0.00038356,21]
[343259362,1732535711904,-500.0,0.00038356,21]
[343259363,1732535712025,-500.0,0.00038356,21]
[343259364,1732535712089,-500.0,0.00038356,21]
[343259365,1732535712114,-500.0,0.00038356,21]
[343259366,1732535712146,-500.0,0.00038356,21]
[343259367,1732535712167,-500.0,0.00038356,21]
[343259368,1732535712190,-500.0,0.00038356,21]
[343259369,1732535712214,-500.0,0.00038356,21]
[343259370,1732535712236,-500.0,0.00038356,21]
[343259371,1732535712258,-500.0,0.00038356,21]
[343259372,1732535712279,-500.0,0.00038356,21]
[343259373,1732535712301,-500.0,0.00038356,21]
[343259374,1732535712324,-200.0,0.00038356,10]
[343259375,1732535712346,-500.0,0.00038356,21]
[343259376,1732535712376,-500.0,0.00038356,21]
[343259377,1732535712397,-500.0,0.00038356,21]
[343259378,1732535712419,-500.0,0.00038356,21]
[343259379,1732535712439,-500.74356458,0.00038356,21]
[343259380,1732535712460,-500.0,0.00038356,21]
[343259381,1732535712481,-500.0,0.00038356,21]
[343259382,1732535712503,-503.26229145,0.00038356,21]
[343259383,1732535712525,-500.0,0.00038356,21]
[343259384,1732535712546,-500.0,0.00038356,21]
[343259385,1732535712568,-500.0,0.00038356,21]
[343259386,1732535712598,-500.37878393,0.00038356,21]
[343259387,1732535712626,-500.0,0.00038356,21]
[343259388,1732535712664,-500.0,0.00038356,21]
[343259389,1732535712688,-500.0,0.00038356,21]
[343259390,1732535712709,-500.0,0.00038356,21]
[343259391,1732535712741,-504.53767016,0.00038356,21]
[343259392,1732535712763,-500.0,0.00038356,21]
[343259393,1732535712787,-500.0,0.00038356,21]
[343259394,1732535712810,-500.0,0.00038356,21]
[343259395,1732535712831,-500.0,0.00038356,21]
[343259396,1732535712859,-500.0,0.00038356,21]
[343259397,1732535712881,-500.0,0.00038356,21]
[343259398,1732535712903,-500.0,0.00038356,21]
[343259399,1732535712927,-500.0,0.00038356,21]
[343259400,1732535712948,-500.0,0.00038356,21]
[343259401,1732535712978,-502.43604033,0.00038356,21]
[343259402,1732535713000,-500.0,0.00038356,21]
[343259403,1732535713022,-500.0,0.00038356,21]
[343259404,1732535713043,-504.13089552,0.00038356,21]
[343259405,1732535713064,-500.0,0.00038356,21]
[343259406,1732535713087,-500.0,0.00038356,21]
[343259407,1732535713112,-500.0,0.00038356,21]
[343259408,1732535713133,-500.0,0.00038356,21]
[343259409,1732535713155,-617.58220875,0.00038356,21]
[343259410,1732535713176,-500.0,0.00038356,21]
[343259411,1732535713198,-500.0,0.00038356,21]
[343259412,1732535713348,-502.49870445,0.00038356,21]
[343259413,1732535713376,-500.0,0.00038356,21]
[343259414,1732535713397,-500.0,0.00038356,21]
[343259415,1732535713420,-500.0,0.00038356,21]
[343259416,1732535713457,-500.0,0.00038356,21]
[343259417,1732535713479,-500.0,0.00038356,21]
[343259418,1732535713500,-500.0,0.00038356,21]
[343259419,1732535713522,-500.0,0.00038356,21]
[343259420,1732535713543,-500.0,0.00038356,21]
[343259421,1732535713565,-500.0,0.00038356,21]
[343259422,1732535713587,-500.0,0.00038356,21]
[343259423,1732535713610,-500.0,0.00038356,21]
[343259424,1732535713631,-500.0,0.00038356,21]
[343259425,1732535713652,-503.36515984,0.00038356,21]
[343259426,1732535713673,-500.0,0.00038356,21]
[343259427,1732535713695,-505.56495015,0.00038356,21]
[343259428,1732535713717,-500.0,0.00038356,21]
[343259429,1732535713740,-500.0,0.00038356,21]
[343259430,1732535713761,-500.0,0.00038356,21]
[343259431,1732535713783,-500.0,0.00038356,21]
[343259432,1732535713804,-500.0,0.00038356,21]
[343259433,1732535713826,-500.0,0.00038356,21]
[343259434,1732535713847,-500.0,0.00038356,21]
[343259435,1732535713872,-500.0,0.00038356,21]
[343259436,1732535713894,-500.0,0.00038356,21]
[343259437,1732535713915,-500.0,0.00038356,21]
[343259438,1732535713938,-500.0,0.00038356,21]
[343259439,1732535713961,-500.0,0.00038356,21]
[343259440,1732535713982,-500.0,0.00038356,21]
[343259441,1732535714002,-500.0,0.00038356,21]
[343259442,1732535714024,-500.0,0.00038356,21]
[343259443,1732535714045,-500.0,0.00038356,21]
[343259444,1732535714066,-500.0,0.00038356,21]
[343259445,1732535714087,-500.0,0.00038356,21]
[343259446,1732535714111,-500.0,0.00038356,21]
[343259447,1732535714134,-500.0,0.00038356,21]
[343259448,1732535714155,-500.0,0.00038356,21]
[343259449,1732535714175,-500.0,0.00038356,21]
[343259450,1732535714196,-500.0,0.00038356,21]
[343259451,1732535714218,-500.0,0.00038356,21]
[343259452,1732535714238,-500.0,0.00038356,21]
[343259453,1732535714259,-500.0,0.00038356,21]
[343259454,1732535714279,-500.0,0.00038356,21]
[343259455,1732535714299,-500.0,0.00038356,21]
[343259456,1732535714320,-500.0,0.00038356,21]
[343259457,1732535714341,-500.0,0.00038356,21]
[343259458,1732535714363,-500.0,0.00038356,21]
[343259459,1732535714384,-500.0,0.00038356,21]
[343259460,1732535714404,-500.0,0.00038356,21]
[343259461,1732535714426,-500.0,0.00038356,21]
[343259462,1732535714447,-502.37168307,0.00038356,21]
[343259463,1732535714468,-500.0,0.00038356,21]
[343259464,1732535714489,-500.0,0.00038356,21]
[343259465,1732535714510,-500.0,0.00038356,21]
[343259466,1732535714531,-500.0,0.00038356,21]
[343259467,1732535714552,-500.0,0.00038356,21]
[343259468,1732535714574,-500.0,0.00038356,21]
[343259469,1732535714596,-500.0,0.00038356,21]
[343259470,1732535714620,-500.0,0.00038356,21]
[343259471,1732535714642,-500.0,0.00038356,21]
[343259472,1732535714663,-500.0,0.00038356,21]
[343259473,1732535714685,-308.31557698,0.00038356,21]
[343259474,1732535714707,-500.0,0.00038356,21]
[343259475,1732535714730,-500.0,0.00038356,21]
[343259476,1732535714752,-500.0,0.00038356,21]
[343259477,1732535714774,-500.0,0.00038356,21]
[343259478,1732535714796,-500.0,0.00038356,21]
[343259479,1732535714817,-395.53768271,0.00038356,21]
[343259480,1732535714843,-500.0,0.00038356,21]
[343259481,1732535714869,-500.0,0.00038356,21]
[343259482,1732535714893,-500.0,0.00038356,21]
[343259483,1732535714915,-500.0,0.00038356,21]
[343259484,1732535714939,-500.0,0.00038356,21]
[343259485,1732535714961,-500.0,0.00038356,21]
[343259486,1732535714983,-500.0,0.00038356,21]
[343259487,1732535715005,-501.29988292,0.00038356,21]
[343259488,1732535715028,-500.0,0.00038356,21]